lending/lending_fUSD_20250819
["ID","MTS","AMOUNT","RATE_DAILY","PERIOD"]
[380173787,1755593371229,-795.54,0.0003041,120]
[380173788,1755593371272,-499.53,0.0003041,120]
[380173789,1755593371311,-400.0,0.0003041,120]
[380173790,1755593371350,-1355.19,0.0003041,120]
[380173791,1755593371388,-400.0,0.0003041,120]
[380173792,1755593371426,-1390.48,0.0003041,120]
[380173793,1755593371463,-491.0,0.0003041,120]
[380173794,1755593371502,-1702.32,0.0003041,120]
[380173795,1755593371542,-941.13,0.0003041,120]
[380173796,1755593371582,-384.51991078,0.0003041,30]
[380173797,1755593372093,-1064.09,0.0003041,120]
[380173798,1755593372136,-400.0,0.0003041,120]
[380173799,1755593372177,-400.0,0.0003041,120]
[380173800,1755593372219,-400.0,0.0003041,120]
[380173801,1755593372259,-1299.83,0.0003041,120]
[380173802,1755593372300,-1105.35,0.0003041,120]
[380173803,1755593372340,-400.0,0.0003041,120]
[380173804,1755593372382,-400.0,0.0003041,120]
[380173805,1755593372421,-400.0,0.0003041,120]
[380173806,1755593372458,-400.0,0.0003041,120]
[380173807,1755593372495,-400.0,0.0003041,120]
[380173808,1755593372536,-464.6,0.0003041,120]
[380173809,1755593372574,-400.0,0.0003041,120]
[380173810,1755593372613,-959.67,0.0003041,120]
[380173811,1755593372652,-561.14,0.0003041,120]
[380173812,1755593372688,-847.17,0.0003041,120]
[380173813,1755593372725,-400.0,0.0003041,120]
[380173814,1755593372762,-400.0,0.0003041,120]
[380173815,1755593372799,-400.0,0.0003041,120]
[380173816,1755593372838,-400.0,0.0003041,120]
[380173817,1755593372874,-847.04,0.0003041,120]
[380173818,1755593372911,-400.0,0.0003041,120]
[380173819,1755593372959,-786.23,0.0003041,120]
[380173820,1755593372996,-915.82,0.0003041,120]
[380173821,1755593373037,-651.18,0.0003041,120]
[380173822,1755593373075,-400.0,0.0003041,120]
[380173823,1755593373114,-2133.9,0.0003041,120]
[380173824,1755593373155,-400.0,0.0003041,120]
[380173825,1755593373197,-941.38,0.0003041,120]
[380173826,1755593373239,-400.0,0.0003041,120]
[380173827,1755593373281,-701.84,0.0003041,120]
[380173828,1755593373322,-400.0,0.0003041,120]
[380173829,1755593373365,-400.0,0.0003041,120]
[380173830,1755593373404,-647.43,0.0003041,120]
[380173831,1755593373447,-987.11,0.0003041,120]
[380173832,1755593373490,-2140.02,0.0003041,120]
[380173833,1755593373535,-400.0,0.0003041,120]
[380173834,1755593373578,-400.0,0.0003041,120]
[380173835,1755593373622,-400.0,0.0003041,120]
[380173836,1755593373660,-400.0,0.0003041,120]
[380173837,1755593373700,-857.16,0.0003041,120]
[380173838,1755593373746,-1414.09,0.0003041,120]
[380173839,1755593373788,-1554.18,0.0003041,120]
[380173840,1755593373829,-473.76,0.0003041,120]
[380173841,1755593373868,-1308.53,0.0003041,120]
[380173842,1755593373906,-400.0,0.0003041,120]
[380173843,1755593373944,-300.0,0.0003041,120]
[380173844,1755593373980,-400.0,0.0003041,120]
[380173845,1755593374018,-400.0,0.0003041,120]
[380173846,1755593374057,-916.56,0.0003041,120]
[380173847,1755593374096,-592.74,0.0003041,120]
[380173848,1755593374140,-400.0,0.0003041,120]
[380173849,1755593374181,-2307.41,0.0003041,120]
[380173850,1755593374222,-2000.0,0.0003041,30]
[380173851,1755593374265,-982.11,0.0003041,120]
[380173852,1755593374308,-2489.98,0.0003041,120]
[380173853,1755593374351,-400.0,0.0003041,120]
[380173854,1755593374394,-400.0,0.0003041,120]
[380173855,1755593374437,-400.0,0.0003041,120]
[380173856,1755593374479,-400.0,0.0003041,120]
[380173857,1755593374530,-400.0,0.0003041,120]
[380173858,1755593374573,-784.83,0.0003041,120]
[380173859,1755593374613,-400.0,0.0003041,120]
[380173860,1755593374652,-499.4,0.0003041,120]
[380173861,1755593374694,-1604.38,0.0003041,120]
[380173862,1755593374734,-400.0,0.0003041,120]
[380173863,1755593374777,-2442.79,0.0003041,120]
[380173864,1755593374817,-400.0,0.0003041,120]
[380173865,1755593374857,-487.12,0.0003041,120]
[380173866,1755593374898,-400.0,0.0003041,120]
[380173867,1755593374939,-400.0,0.0003041,120]
[380173868,1755593374980,-400.0,0.0003041,120]
[380173869,1755593375021,-400.0,0.0003041,120]
[380173870,1755593375063,-400.0,0.0003041,120]
[380173871,1755593375107,-1912.44,0.0003041,120]
[380173872,1755593375149,-416.6,0.0003041,120]
[380173873,1755593375194,-922.78,0.0003041,120]
[380173874,1755593375239,-936.27,0.0003041,120]
[380173875,1755593375282,-1833.84,0.0003041,120]
[380173876,1755593375325,-400.0,0.0003041,90]
[380173877,1755593375368,-444.37,0.0003041,120]
[380173878,1755593375411,-400.0,0.0003041,120]
[380173879,1755593375455,-400.0,0.0003041,120]
[380173880,1755593375498,-400.0,0.0003041,120]
[380173881,1755593375542,-400.0,0.0003041,120]
[380173882,1755593375583,-400.0,0.0003041,120]
[380173883,1755593375626,-565.12,0.0003041,120]
[380173884,1755593375667,-440.76,0.0003041,120]
[380173885,1755593375709,-400.0,0.0003041,120]
[380173886,1755593375752,-400.0,0.0003041,120]
[380173887,1755593375795,-400.0,0.0003041,120]
[380173888,1755593375834,-1296.75,0.0003041,120]
[380173889,1755593375873,-2104.13,0.0003041,120]
[380173890,1755593375913,-812.39,0.0003041,120]
[380173891,1755593375955,-400.0,0.0003041,120]
[380173892,1755593376002,-1626.63,0.0003041,120]
[380173893,1755593376045,-723.04,0.0003041,120]
[380173894,1755593376088,-1192.71,0.0003041,120]
[380173895,1755593376133,-400.0,0.0003041,120]
[380173896,1755593376179,-400.0,0.0003041,120]
[380173897,1755593376223,-1199.62,0.0003041,120]
[380173898,1755593376267,-400.0,0.0003041,120]
[380173899,1755593376310,-455.68,0.0003041,120]
[380173900,1755593376355,-858.6,0.0003041,120]
[380173901,1755593376399,-401.62668163,0.0003041,120]
[380173902,1755593376441,-400.0,0.0003041,120]
[380173903,1755593376481,-1273.14,0.0003041,120]
[380173904,1755593376523,-1749.61,0.0003041,120]
[380173905,1755593376560,-400.0,0.0003041,120]
[380173906,1755593376598,-1391.9,0.0003041,120]
[380173907,1755593376636,-770.27,0.0003041,120]
[380173908,1755593376674,-563.53,0.0003041,120]
[380173909,1755593376713,-1100.77,0.0003041,120]
[380173910,1755593376752,-400.0,0.0003041,120]
[380173911,1755593376790,-2152.24,0.0003041,120]
[380173912,1755593376833,-2659.16,0.0003041,120]
[380173913,1755593377271,-400.0,0.0003041,120]
[380173914,1755593377312,-972.41,0.0003041,120]
[380173915,1755593377352,-400.0,0.0003041,120]
[380173916,1755593377392,-400.0,0.0003041,120]
[380173917,1755593377429,-400.0,0.0003041,120]
[380173918,1755593377465,-1355.82,0.0003041,120]
[380173919,1755593377501,-565.36,0.0003041,120]
[380173920,1755593377543,-2801.41,0.0003041,120]
[380173921,1755593377578,-1321.24,0.0003041,120]
[380173922,1755593377614,-400.0,0.0003041,120]
[380173923,1755593377649,-494.66,0.0003041,120]
[380173924,1755593377683,-400.0,0.0003041,120]
[380173925,1755593377718,-1285.4,0.0003041,120]
[380173926,1755593377755,-653.71,0.0003041,120]
[380173927,1755593377792,-786.99,0.0003041,120]
[380173928,1755593377827,-400.0,0.0003041,120]
[380173929,1755593377861,-400.0,0.0003041,120]
[380173930,1755593377896,-400.0,0.0003041,120]
[380173931,1755593377930,-400.0,0.0003041,120]
[380173932,1755593377965,-539.77,0.0003041,120]
[380173933,1755593378000,-400.0,0.0003041,120]
[380173934,1755593378036,-400.0,0.0003041,120]
[380173935,1755593378088,-400.0,0.0003041,120]
[380173936,1755593378126,-400.0,0.0003041,120]
[380173937,1755593378164,-840.24,0.0003041,120]
[380173938,1755593378201,-1053.66,0.0003041,120]
[380173939,1755593378239,-915.49,0.0003041,120]
[380173940,1755593378277,-400.0,0.0003041,120]
[380173941,1755593378314,-400.0,0.0003041,120]
[380173942,1755593378352,-503.59,0.0003041,120]
[380173943,1755593378392,-400.0,0.0003041,120]
[380173944,1755593378434,-400.0,0.0003041,120]
[380173945,1755593378473,-400.0,0.0003041,120]
[380173946,1755593378510,-595.32,0.0003041,120]
[380173947,1755593378551,-1400.56,0.0003041,120]
[380173948,1755593378589,-400.0,0.0003041,90]
[380173949,1755593378627,-400.0,0.0003041,120]
[380173950,1755593378666,-400.0,0.0003041,120]
[380173951,1755593378703,-400.0,0.0003041,120]
[380173952,1755593378742,-400.0,0.0003041,120]
[380173953,1755593378781,-400.0,0.0003041,120]
[380173954,1755593378819,-2338.77,0.0003041,120]
[380173955,1755593378859,-2546.56,0.0003041,120]
[380173956,1755593378899,-1016.71,0.0003041,120]
[380173957,1755593378940,-1361.85,0.0003041,120]
[380173958,1755593378982,-1418.62,0.0003041,120]
[380173959,1755593379021,-400.0,0.0003041,120]
[380173960,1755593379061,-400.0,0.0003041,120]
[380173961,1755593379113,-400.0,0.0003041,120]
[380173962,1755593379181,-3052.41,0.0003041,120]
[380173963,1755593379248,-875.32,0.0003041,120]
[380173964,1755593379309,-2708.53,0.0003041,120]
[380173965,1755593379352,-412.27,0.0003041,120]
[380173966,1755593379393,-446.75,0.0003041,120]
[380173967,1755593379432,-400.0,0.0003041,120]
[380173968,1755593379471,-1524.95,0.0003041,120]
[380173969,1755593379509,-400.0,0.0003041,120]
[380173970,1755593379550,-623.68,0.0003041,120]
[380173971,1755593379588,-400.0,0.0003041,120]
[380173972,1755593379627,-573.04,0.0003041,120]
[380173973,1755593379662,-400.0,0.0003041,120]
[380173974,1755593379695,-1958.09,0.0003041,120]
[380173975,1755593379728,-457.04,0.0003041,120]
[380173976,1755593379764,-400.0,0.0003041,120]
[380173977,1755593379799,-3367.21,0.0003041,120]
[380173978,1755593379834,-1541.16,0.0003041,120]
[380173979,1755593379869,-576.85,0.0003041,120]
[380173980,1755593379905,-400.0,0.0003041,120]
[380173981,1755593379940,-778.23,0.0003041,120]
[380173982,1755593379975,-777.66,0.0003041,120]
[380173983,1755593380010,-400.0,0.0003041,120]
[380173984,1755593380047,-1157.51,0.0003041,120]
[380173985,1755593380084,-400.0,0.0003041,120]
[380173986,1755593380122,-883.93,0.0003041,120]
[380173987,1755593380161,-400.0,0.0003041,120]
[380173988,1755593380200,-416.01,0.0003041,120]
[380173989,1755593380242,-1023.12,0.0003041,120]
[380173990,1755593380283,-664.46,0.0003041,120]
[380173991,1755593380330,-411.54,0.0003041,120]
[380173992,1755593380370,-400.0,0.0003041,120]
[380173993,1755593380411,-400.0,0.0003041,120]
[380173994,1755593380453,-1181.57,0.0003041,30]
[380173995,1755593380492,-1900.5,0.0003041,120]
[380173996,1755593380532,-400.0,0.0003041,120]
[380173997,1755593380570,-635.35,0.0003041,120]
[380173998,1755593380609,-411.21693381,0.0003041,120]
[380173999,1755593380646,-181.04570931,0.0003041,120]
[380174000,1755593380682,-400.0,0.0003041,120]
[380174001,1755593380719,-400.0,0.0003041,120]
[380174002,1755593380759,-2782.77,0.0003041,120]
[380174003,1755593380797,-880.07,0.0003041,120]
[380174004,1755593380836,-1399.87,0.0003041,120]
[380174005,1755593380873,-400.0,0.0003041,120]
[380174006,1755593380914,-756.16,0.0003041,120]
[380174007,1755593380953,-400.0,0.0003041,120]
[380174008,1755593380990,-2607.91,0.0003041,120]
[380174009,1755593381028,-400.0,0.0003041,120]
[380174010,1755593381065,-400.0,0.0003041,120]
[380174011,1755593381100,-1685.77,0.0003041,120]
[380174012,1755593381137,-400.0,0.0003041,120]
[380174013,1755593381174,-400.0,0.0003041,120]
[380174014,1755593381211,-3752.32,0.0003041,120]
[380174015,1755593381249,-400.0,0.0003041,120]
[380174016,1755593381288,-400.0,0.0003041,120]
[380174017,1755593381326,-815.89,0.0003041,120]
[380174018,1755593381365,-1194.95,0.0003041,120]
[380174019,1755593381404,-2328.27,0.0003041,120]
[380174020,1755593381442,-1812.16,0.0003041,120]
[380174021,1755593381478,-426.09,0.0003041,120]
[380174022,1755593381518,-4179.34,0.0003041,120]
[380174023,1755593381554,-2574.9,0.0003041,120]
[380174024,1755593381593,-846.89,0.0003041,120]
[380174025,1755593381629,-400.0,0.0003041,120]
[380174026,1755593381665,-1728.05,0.0003041,120]
[380174027,1755593381701,-1222.74,0.0003041,120]
[380174028,1755593381738,-543.72,0.0003041,120]
[380174029,1755593382143,-400.0,0.0003041,120]
[380174030,1755593382192,-400.0,0.0003041,120]
[380174031,1755593382237,-3281.26,0.0003041,120]
[380174032,1755593382281,-400.0,0.0003041,120]
[380174033,1755593382323,-400.0,0.0003041,120]
[380174034,1755593382365,-400.0,0.0003041,120]
[380174035,1755593382404,-1234.16,0.0003041,30]
[380174036,1755593382444,-474.31,0.0003041,120]
[380174037,1755593382482,-542.53156732,0.0003041,120]
[380174038,1755593382522,-3620.0,0.0003041,120]
[380174039,1755593382561,-400.0,0.0003041,120]
[380174040,1755593382597,-1403.42,0.0003041,120]
[380174041,1755593382636,-586.71,0.0003041,120]
[380174042,1755593382674,-491.32063048,0.0003041,120]
[380174043,1755593382711,-772.89,0.0003041,120]
[380174044,1755593382748,-2407.17,0.0003041,120]
[380174045,1755593382783,-400.0,0.0003041,120]
[380174046,1755593382819,-400.0,0.0003041,120]
[380174047,1755593382854,-2269.43,0.0003041,120]
[380174048,1755593382889,-400.0,0.0003041,120]
[380174049,1755593382924,-3134.06,0.0003041,120]
[380174050,1755593382964,-400.0,0.0003041,120]
[380174051,1755593383000,-924.72,0.0003041,120]
[380174052,1755593383037,-760.88,0.0003041,120]
[380174053,1755593383075,-400.0,0.0003041,120]
[380174054,1755593383112,-400.0,0.0003041,120]
[380174055,1755593383151,-1727.99,0.0003041,120]
[380174056,1755593383191,-2525.52,0.0003041,120]
[380174057,1755593383230,-400.0,0.0003041,120]
[380174058,1755593383268,-559.67,0.0003041,120]
[380174059,1755593383306,-400.0,0.0003041,120]
[380174060,1755593383345,-400.0,0.0003041,120]
[380174061,1755593383384,-2193.65,0.0003041,120]
[380174062,1755593383422,-400.0,0.0003041,120]
[380174063,1755593383458,-3511.43,0.0003041,120]
[380174064,1755593383493,-864.16,0.0003041,120]
[380174065,1755593383528,-400.0,0.0003041,120]
[380174066,1755593383563,-2253.07,0.0003041,120]
[380174067,1755593383597,-662.26,0.0003041,120]
[380174068,1755593383631,-1255.42,0.0003041,120]
[380174069,1755593383667,-2199.43,0.0003041,120]
[380174070,1755593383705,-1045.24,0.0003041,120]
[380174071,1755593383747,-400.0,0.0003041,120]
[380174072,1755593383783,-400.0,0.0003041,120]
[380174073,1755593383822,-1130.09,0.0003041,120]
[380174074,1755593383859,-400.0,0.0003041,120]
[380174075,1755593383900,-872.81,0.0003041,120]
[380174076,1755593383944,-2402.4,0.0003041,120]
[380174077,1755593383995,-2171.65,0.0003041,120]
[380174078,1755593384034,-400.0,0.0003041,120]
[380174079,1755593384074,-2165.96,0.0003041,120]
[380174080,1755593384115,-400.0,0.0003041,120]
[380174081,1755593384156,-400.0,0.0003041,120]
[380174082,1755593384198,-402.5071592,0.0003041,120]
[380174083,1755593384240,-400.0,0.0003041,120]
[380174084,1755593384281,-2434.45,0.0003041,120]
[380174085,1755593384321,-400.0,0.0003041,120]
[380174086,1755593384366,-1033.66,0.0003041,120]
[380174087,1755593384407,-400.0,0.0003041,120]
[380174088,1755593384446,-835.75,0.0003041,120]
[380174089,1755593384484,-400.0,0.0003041,120]
[380174090,1755593384523,-2513.93,0.0003041,120]
[380174091,1755593384561,-1427.08,0.0003041,120]
[380174092,1755593384599,-2167.68,0.0003041,120]
[380174093,1755593384638,-940.37,0.0003041,120]
[380174094,1755593384675,-400.0,0.0003041,120]
[380174095,1755593384714,-400.0,0.0003041,120]
[380174096,1755593384752,-1770.89,0.0003041,120]
[380174097,1755593384791,-1499.62,0.0003041,120]
[380174098,1755593384829,-400.0,0.0003041,120]
[380174099,1755593384868,-3809.15,0.0003041,120]
[380174100,1755593384910,-2025.78,0.0003041,120]
[380174101,1755593384951,-1628.88,0.0003041,120]
[380174102,1755593384993,-473.19,0.0003041,120]
[380174103,1755593385039,-2210.47,0.0003041,120]
[380174104,1755593385084,-573.53,0.0003041,120]
[380174105,1755593385128,-400.0,0.0003041,120]
[380174106,1755593385171,-955.55,0.0003041,120]
[380174107,1755593385213,-400.0,0.0003041,120]
[380174108,1755593385258,-400.0,0.0003041,120]
[380174109,1755593385302,-400.0,0.0003041,120]
[380174110,1755593385344,-947.03,0.0003041,120]
[380174111,1755593385385,-821.99,0.0003041,120]
[380174112,1755593385427,-400.0,0.0003041,120]
[380174113,1755593385467,-2965.93,0.0003041,120]
[380174114,1755593385504,-527.14,0.0003041,120]
[380174115,1755593385542,-400.0,0.0003041,120]
[380174116,1755593385578,-400.0,0.0003041,120]
[380174117,1755593385615,-1720.82,0.0003041,120]
[380174118,1755593385652,-2110.39,0.0003041,120]
[380174119,1755593385690,-400.0,0.0003041,120]
[380174120,1755593385726,-431.14046517,0.0003041,120]
[380174121,1755593385763,-400.0,0.0003041,120]
[380174122,1755593385800,-1855.41,0.0003041,120]
[380174123,1755593385837,-1824.55,0.0003041,120]
[380174124,1755593385875,-3283.28,0.0003041,120]
[380174125,1755593385914,-905.21,0.0003041,120]
[380174126,1755593385955,-400.0,0.0003041,120]
[380174127,1755593385998,-400.0,0.0003041,120]
[380174128,1755593386042,-400.0,0.0003041,120]
[380174129,1755593386085,-400.0,0.0003041,120]
[380174130,1755593386133,-401.52,0.0003041,120]
[380174131,1755593386176,-2229.94,0.0003041,120]
[380174132,1755593386222,-400.0,0.0003041,120]
[380174133,1755593386267,-2365.87,0.0003041,120]
[380174134,1755593386314,-400.0,0.0003041,120]
[380174135,1755593386366,-799.99,0.0003041,120]
[380174136,1755593386410,-400.0,0.0003041,120]
[380174137,1755593386453,-1257.57,0.0003041,120]
[380174138,1755593386496,-1324.91,0.0003041,120]
[380174139,1755593386546,-400.0,0.0003041,120]
[380174140,1755593386592,-2249.2,0.0003041,120]
[380174141,1755593386636,-2135.79,0.0003041,120]
[380174142,1755593386676,-400.0,0.0003041,120]
[380174143,1755593386716,-825.68,0.0003041,120]
[380174144,1755593386756,-941.94,0.0003041,120]
[380174145,1755593387099,-400.0,0.0003041,120]
[380174146,1755593387141,-2149.81,0.0003041,120]
[380174147,1755593387180,-400.0,0.0003041,120]
[380174148,1755593387219,-2199.88,0.0003041,120]
[380174149,1755593387260,-400.0,0.0003041,120]
[380174150,1755593387301,-577.43,0.0003041,120]
[380174151,1755593387342,-400.0,0.0003041,120]
[380174152,1755593387383,-400.0,0.0003041,120]
[380174153,1755593387422,-2126.5,0.0003041,120]
[380174154,1755593387461,-1188.67,0.0003041,120]
[380174155,1755593387499,-347.19,0.0003041,120]
[380174156,1755593387538,-699.25,0.0003041,120]
[380174157,1755593387576,-400.0,0.0003041,120]
[380174158,1755593387611,-400.0,0.0003041,120]
[380174159,1755593387645,-1796.76,0.0003041,120]
[380174160,1755593387679,-400.0,0.0003041,120]
[380174161,1755593387715,-400.0,0.0003041,120]
[380174162,1755593387751,-2203.47,0.0003041,120]
[380174163,1755593387786,-400.0,0.0003041,120]
[380174164,1755593387821,-1390.3,0.0003041,120]
[380174165,1755593387857,-1168.18,0.0003041,120]
[380174166,1755593387892,-3126.88,0.0003041,120]
[380174167,1755593387927,-400.0,0.0003041,120]
[380174168,1755593387962,-400.0,0.0003041,120]
[380174169,1755593387996,-4441.4,0.0003041,120]
[380174170,1755593388035,-4869.22,0.0003041,120]
[380174171,1755593388073,-1497.93,0.0003041,120]
[380174172,1755593388112,-400.0,0.0003041,120]
[380174173,1755593388150,-602.22,0.0003041,120]
[380174174,1755593388193,-447.91,0.0003041,120]
[380174175,1755593388235,-400.0,0.0003041,120]
[380174176,1755593388276,-1318.57,0.0003041,120]
[380174177,1755593388317,-400.0,0.0003041,120]
[380174178,1755593388358,-3440.34,0.0003041,120]
[380174179,1755593388401,-2598.35,0.0003041,120]
[380174180,1755593388458,-818.85,0.0003041,120]
[380174181,1755593388500,-679.72,0.0003041,120]
[380174182,1755593388543,-771.65,0.0003041,120]
[380174183,1755593388585,-1569.72,0.0003041,120]
[380174184,1755593388625,-400.0,0.0003041,120]
[380174185,1755593388667,-2502.7,0.0003041,120]
[380174186,1755593388707,-400.0,0.0003041,120]
[380174187,1755593388748,-2685.36,0.0003041,120]
[380174188,1755593388788,-400.0,0.0003041,120]
[380174189,1755593388826,-2937.77,0.0003041,120]
[380174190,1755593388867,-985.02,0.0003041,120]
[380174191,1755593388910,-400.0,0.0003041,120]
[380174192,1755593388952,-3252.38,0.0003041,120]
[380174193,1755593388994,-1266.73,0.0003041,120]
[380174194,1755593389038,-847.32,0.0003041,120]
[380174195,1755593389079,-400.0,0.0003041,120]
[380174196,1755593389122,-1266.46,0.0003041,120]
[380174197,1755593389165,-2064.41,0.0003041,120]
[380174198,1755593389208,-1025.93,0.0003041,120]
[380174199,1755593389253,-1962.4,0.0003041,120]
[380174200,1755593389297,-400.0,0.0003041,120]
[380174201,1755593389339,-2523.91,0.0003041,120]
[380174202,1755593389380,-400.0,0.0003041,120]
[380174203,1755593389421,-2182.63,0.0003041,120]
[380174204,1755593389462,-400.0,0.0003041,120]
[380174205,1755593389503,-2801.34,0.0003041,120]
[380174206,1755593389545,-1315.27,0.0003041,120]
[380174207,1755593389584,-400.0,0.0003041,120]
[380174208,1755593389625,-510.6507566,0.0003041,120]
[380174209,1755593389663,-570.3,0.0003041,120]
[380174210,1755593389701,-400.0,0.0003041,120]
[380174211,1755593389742,-3842.89,0.0003041,120]
[380174212,1755593389780,-400.0,0.0003041,120]
[380174213,1755593389820,-1056.07,0.0003041,120]
[380174214,1755593389860,-2607.83,0.0003041,120]
[380174215,1755593389898,-2486.53,0.0003041,120]
[380174216,1755593389937,-1928.3,0.0003041,120]
[380174217,1755593389975,-2379.37,0.0003041,120]
[380174218,1755593390013,-744.53,0.0003041,120]
[380174219,1755593390053,-400.0,0.0003041,120]
[380174220,1755593390092,-573.28,0.0003041,120]
[380174221,1755593390130,-400.0,0.0003041,120]
[380174222,1755593390170,-2256.79,0.0003041,120]
[380174223,1755593390211,-2536.11,0.0003041,120]
[380174224,1755593390250,-997.72,0.0003041,120]
[380174225,1755593390290,-400.0,0.0003041,120]
[380174226,1755593390328,-490.28,0.0003041,120]
[380174227,1755593390366,-493.83,0.0003041,120]
[380174228,1755593390403,-785.16,0.0003041,120]
[380174229,1755593390438,-2112.86,0.0003041,120]
[380174230,1755593390475,-400.0,0.0003041,120]
[380174231,1755593390518,-3244.78,0.0003041,120]
[380174232,1755593390558,-861.29,0.0003041,120]
[380174233,1755593390597,-1427.16,0.0003041,120]
[380174234,1755593390635,-638.84,0.0003041,120]
[380174235,1755593390675,-400.0,0.0003041,120]
[380174236,1755593390714,-2726.24,0.0003041,120]
[380174237,1755593390752,-647.1,0.0003041,120]
[380174238,1755593390791,-2201.44,0.0003041,120]
[380174239,1755593390830,-400.0,0.0003041,120]
[380174240,1755593390872,-573.5,0.0003041,120]
[380174241,1755593390913,-400.0,0.0003041,120]
[380174242,1755593390952,-400.0,0.0003041,120]
[380174243,1755593390991,-272.05654724,0.0003041,120]
[380174244,1755593391034,-400.0,0.0003041,120]
[380174245,1755593391078,-1033.38,0.0003041,120]
[380174246,1755593391120,-689.06,0.0003041,120]
[380174247,1755593391162,-400.0,0.0003041,120]
[380174248,1755593391204,-400.0,0.0003041,120]
[380174249,1755593391246,-2897.24,0.0003041,120]
[380174250,1755593391287,-1424.33,0.0003041,120]
[380174251,1755593391327,-400.0,0.0003041,120]
[380174252,1755593391369,-483.02,0.0003041,120]
[380174253,1755593391406,-1337.96,0.0003041,120]
[380174254,1755593391444,-918.75,0.0003041,120]
[380174255,1755593391481,-2294.4,0.0003041,120]
[380174256,1755593391522,-798.59,0.0003041,120]
[380174257,1755593391561,-1612.44,0.0003041,120]
[380174258,1755593391600,-400.0,0.0003041,120]
[380174259,1755593391639,-1067.57,0.0003041,120]
[380174260,1755593391676,-400.0,0.0003041,120]
[380174261,1755593392011,-877.17,0.0003041,120]
[380174262,1755593392056,-400.0,0.0003041,120]
[380174263,1755593392097,-1947.97,0.0003041,120]
[380174264,1755593392137,-457.59,0.0003041,120]
[380174265,1755593392180,-402.26090271,0.0003041,120]
[380174266,1755593392221,-2570.26,0.0003041,120]
[380174267,1755593392261,-400.0,0.0003041,120]
[380174268,1755593392304,-1950.81,0.0003041,120]
[380174269,1755593392344,-756.12,0.0003041,120]
[380174270,1755593392383,-878.23,0.0003041,120]
[380174271,1755593392423,-400.0,0.0003041,120]
[380174272,1755593392464,-2706.36,0.0003041,120]
[380174273,1755593392504,-2478.28,0.0003041,120]
[380174274,1755593392546,-1151.57,0.0003041,60]
[380174275,1755593392583,-2464.73,0.0003041,120]
[380174276,1755593392621,-405.22453722,0.0003041,120]
[380174277,1755593392659,-2630.54,0.0003041,120]
[380174278,1755593392694,-1306.85,0.0003041,120]
[380174279,1755593392731,-931.54,0.0003041,120]
[380174280,1755593392770,-1095.57,0.0003041,120]
[380174281,1755593392804,-400.0,0.0003041,120]
[380174282,1755593392839,-400.0,0.0003041,120]
[380174283,1755593392874,-400.0,0.0003041,120]
[380174284,1755593392910,-400.0,0.0003041,120]
[380174285,1755593392957,-400.0,0.0003041,120]
[380174286,1755593392993,-2391.68,0.0003041,120]